Cogmind - Beta 16 @@@ ROGUE MODE // 2025.12.06 @ 04:14:38 Player: AngelSpirit Result: Destroyed by YP-32A(R) with Subdweller Beam Cannon Performance ------------- Evolutions (0) 0 Regions Visited (2) 400 Robots Destroyed (22) 110 Value Destroyed (448) 448 Prototype IDs (0) 0 Alien Tech Used (0) 0 Bonus (0) 0 TOTAL SCORE: 958 Bonus ------- None Cogmind --------- Core Integrity 0/250 Matter 300/300 Energy 123/125 System Corruption 0% Temperature Cool (9) Movement Rolling (95) Ox1 Location -10/Subcaves Parts ------- > --- POWER (1) -------- Light Ion Engine > --- PROPULSION (2) --- Wheel > --- UTILITY (2) ------ Medium Storage Unit Seismic Detector > --- WEAPON (2) ------- Medium Laser > --- INVENTORY (10) --- Light Ion Engine Aluminum Leg Wheel Large Storage Unit Propulsion Shielding Hacking Suite Peak State ------------ > --- POWER ------------ Ion Engine > --- PROPULSION ------- Wheel Wheel > --- UTILITY ---------- Medium Storage Unit Visual Processing Unit > --- WEAPON ----------- Medium Laser Particle Gun > --- INVENTORY -------- Large Storage Unit Seismic Detector [Rating: 9] Favorites ----------- Power Light Ion Engine Engine Light Ion Engine Propulsion Wheel Wheel Wheel Utility Medium Storage Unit Device Seismic Detector Storage Medium Storage Unit Processor Visual Processing Unit Protection Propulsion Shielding Weapon Particle Gun Energy Gun Particle Gun Ballistic Cannon Light Cannon Build | -11 -10 -10 ------- Run | Yrd Mat Sub Slots Evolved . | . . . Power . | . . . Propulsion . | . . . Utility . | . . . Weapon . | . . . Parts Attached 17 | 6 10 1 Power 2 | 1 1 . Engine 2 | 1 1 . Core . | . . . Reactor . | . . . Propulsion 5 | 2 3 . Treads . | . . . Leg . | . . . Wheel 5 | 2 3 . Hover . | . . . Flight . | . . . Utility 5 | 1 3 1 Device 1 | . . 1 Storage 2 | 1 1 . Processor 1 | . 1 . Hackware . | . . . Protection 1 | . 1 . Artifact . | . . . Weapon 5 | 2 3 . Energy Gun 4 | 2 2 . Energy Cannon . | . . . Ballistic Gun . | . . . Ballistic Cannon 1 | . 1 . Launcher . | . . . Special Weapon . | . . . Impact Weapon . | . . . Slashing Weapon . | . . . Piercing Weapon . | . . . Special Melee Weapon . | . . . Unidentified Prototypes . | . . . Parts Lost 5 | . 3 2 Power . | . . . Propulsion 2 | . 1 1 Utility . | . . . Weapon 3 | . 2 1 Highest Loss Streak 2 | . 2 2 To Critical Strikes 1 | . 1 . Average Backups 4 | . 3 6 Power . | . . 1 Propulsion . | . . 2 Utility 2 | . 1 3 Weapon . | . . . Tool/Special . | . . . Unused Backups 5 | . . 5 Power 1 | . . 1 Propulsion 2 | . . 2 Utility 2 | . . 2 Weapon . | . . . Tool/Special . | . . . Average Slot Usage (%) 97 | . 96 100 Engine 14 | . 14 14 Wheel 27 | . 27 28 Device 3 | . . 12 Storage 14 | . 14 14 Processor 1 | . 1 . Protection 7 | . 9 1 Energy Gun 23 | . 21 28 Ballistic Cannon 4 | . 5 . Peak Build Rating 9 | 6 9 8 Average Rating 7 | 4 7 7 On Entrance 4 | . 6 8 Avg Prop Armor Cover (%) . | . . . Naked Turns . | . . . Heaviest Build 21 | 14 21 19 Greatest Support 20 | 20 20 20 Greatest Overweight (x) 1 | . 1 . Average Overweight (x) . | . . . Largest Inventory Capacity 10 | 8 10 10 Average Capacity 9 | 7 9 10 Most Carried 6 | . 6 6 Average Carried 4 | . 3 6 Final Capacity 10 | 8 10 10 Final Carried 6 | . 6 6 Class Distribution -------------------- 100% | Mutant Dominant Class ---------------- Mutant | -10/Materials Mutant | -10/Subcaves Resources | -11 -10 -10 ----------- Run | Yrd Mat Sub Matter Collected 445 | 189 256 . Remotely . | . . . Salvage Created 548 | . 512 36 Parts 28 | . 26 2 Haulers Intercepted 1 | . 1 . Recyclers Shooed . | . . . Parts Field Recycled . | . . . Retrieved Matter . | . . . Parts Self-Destructed 11 | . . 11 Prevented . | . . . Parts Restored . | . . . Kills | -11 -10 -10 ------- Run | Yrd Mat Sub Combat Hostiles Destroyed 11 | . 10 1 Guns 11 | . 10 1 Classes Destroyed 8 | . 8 . Worker 4 | . 4 . Tunneler 2 | . 2 . Hauler 1 | . 1 . Operator 1 | . 1 . Watcher 3 | . 3 . Swarmer 2 | . 2 . Grunt 7 | . 7 . Subdweller 2 | . 1 1 Best Kill Streak 5 | . 5 1 Combat Bots Only 2 | . 2 1 Max Kills in Single Turn 1 | . 1 1 Gunslinging . | . . . Exploded . | . . . Melee . | . . . Uniques/NPCs Destroyed . | . . . Combat | -11 -10 -10 -------- Run | Yrd Mat Sub Hostile Shots Fired 67 | . 56 11 Missed 16 | . 12 4 Hits 51 | . 44 7 Projectile 51 | . 44 7 AOE 2 | . . 2 Critical Strikes 2 | . 2 . Actively Blocked 1 | . 1 . Damage Taken 866 | . 681 185 Core 262 | . 190 72 Absorbed by Shields . | . . . Redirected to Shielding 36 | . 36 . Core Remaining (%) 100 | 100 . . Volleys Fired 71 | . 69 2 Largest 2 | . 2 2 Hottest 115 | . 115 115 Shots Fired 129 | . 125 4 Gun 104 | . 100 4 Cannon 25 | . 25 . Launcher . | . . . Special . | . . . Kinetic 25 | . 25 . Thermal 91 | . 87 4 Explosive . | . . . Electromagnetic 13 | . 13 . Robot Hit Streak 9 | . 6 9 Robot Miss Streak 5 | . 5 . Penetration Max . | . . . Secondary Targets 1 | . . 1 Max Gunslinging Chain 1 | . . 1 Shots Hit Robots 78 | . 74 4 Core Hits 30 | . 28 2 Critical Kills . | . . . Critical Parts Destroyed . | . . . Critical Strikes 3 | . 3 . Burn 3 | . 3 . Melee Attacks . | . . . Impact . | . . . Slashing . | . . . Piercing . | . . . Sneak Attacks . | . . . Combat Hostiles . | . . . Follow-up Attacks . | . . . Damage Inflicted 1181 | . 1128 53 Guns 884 | . 831 53 Cannons 297 | . 297 . Explosions . | . . . Melee . | . . . Ramming . | . . . Kinetic 297 | . 297 . Thermal 811 | . 758 53 Explosive . | . . . Electromagnetic 73 | . 73 . Impact . | . . . Slashing . | . . . Piercing . | . . . Highest Corruption . | . . . Average Corruption . | . . . Corruption Purged . | . . . Corruption Blocked . | . . . Overload Shots . | . . . Overflow Damage 13 | . 13 . Projectiles 13 | . 13 . Explosions . | . . . Melee . | . . . Knockbacks 4 | . 4 . Impact . | . . . Kinetic 4 | . 4 . Secondary . | . . . Self-Inflicted Damage . | . . . Shots . | . . . Rammed . | . . . Targets Rammed . | . . . Kicked . | . . . Crushed . | . . . Highest Temperature 371 | . 371 . Average Temperature 107 | . 107 . Received Heat Transfer 207 | . 174 33 Effects 4 | . 4 . Shutdowns 1 | . 1 . Interference 2 | . 2 . Short Circuit 1 | . 1 . Siege Activations . | . . . Martial Activations . | . . . Shielding Activations . | . . . Robots Disrupted . | . . . Combat Hostiles . | . . . Robots Corrupted . | . . . Combat Hostiles . | . . . Parts Fried . | . . . Impact Corruptions . | . . . Robots Melted . | . . . Combat Hostiles . | . . . Parts Melted 4 | . 4 . Heat Transferred 2331 | . 2183 148 Parts Sabotaged . | . . . Parts Stolen . | . . . Parts Stripped . | . . . Power Chain Reactions . | . . . Alert | -11 -10 -10 ------- Run | Yrd Mat Sub Maximum Alert Level . | . . . Low Security (%) 100 | 100 100 . Level 1 . | . . . Level 2 . | . . . Level 3 . | . . . Level 4 . | . . . Level 5 . | . . . High Security . | . . . Max Security . | . . . Peak Influence 146 | . 146 . Initial . | . . . Average 59 | . 62 . Influence Increases 335 | . 335 . Destroy 0b10 Robot/C 180 | . 180 . Destroy 0b10 Robot/NC 55 | . 55 . Destroy Leader 58 | . 58 . Successful Hack 10 | . 10 . Destroy Structure 2 | . 2 . Lose Combat Pursuer 30 | . 30 . Influence Decreases 335 | . 335 . Time Decay 315 | . 315 . Lost Part 20 | . 20 . Squads Dispatched 3 | . 3 . Investigation . | . . . Extermination . | . . . Reinforcement 3 | . 3 . Assault . | . . . Garrison . | . . . Intercept . | . . . Searches Triggered . | . . . Construction Impeded . | . . . Haulers Reinforced . | . . . Active Scanning Responses . | . . . Cargo Convoy Interrupts . | . . . Stealth | -11 -10 -10 --------- Run | Yrd Mat Sub Distress Signals . | . . . Communications Jammed . | . . . Distress Signals . | . . . Times Spotted 23 | . 19 4 Peak Tracking Total 3 | . 3 2 Tactical Retreats 4 | . 3 1 Traps | -11 -10 -10 ------- Run | Yrd Mat Sub Traps Triggered . | . . . Indirectly . | . . . Trap Hack Attempts . | . . . Triggered . | . . . Disarmed . | . . . Reprogrammed . | . . . Reused . | . . . Traps Extracted . | . . . Installed . | . . . Triggered . | . . . Machines | -11 -10 -10 ---------- Run | Yrd Mat Sub Machines Disabled . | . . . Max in Single Turn . | . . . Machines Repaired . | . . . Machines Dismantled . | . . . Machines Sabotaged . | . . . Overloaded Fab Kills . | . . . Hacking | -11 -10 -10 --------- Run | Yrd Mat Sub Machines Accessed 7 | . 6 1 Terminals 5 | . 5 . Fabricators . | . . . Repair Stations . | . . . Recycling Units 1 | . 1 . Scanalyzers . | . . . Garrison Access . | . . . Total Hacks 15 | . 14 1 Successful 8 | . 7 1 Failed 7 | . 7 . Catastrophic 1 | . 1 . Database Lockouts . | . . . Manual 10 | . 10 . Terminals 13 | . 13 . Fabricators . | . . . Repair Stations . | . . . Recycling Units 1 | . 1 . Scanalyzers . | . . . Garrison Access . | . . . Terminal Hacks 6 | . 5 1 Robot Analysis 1 | . 1 . Open Door 1 | . . 1 Locate Traps 2 | . 2 . Hauler Manifests 1 | . 1 . Zone Layout 1 | . 1 . Fabricator Hacks . | . . . Repair Station Hacks . | . . . Recycling Unit Hacks 1 | . 1 . Retrieve Components 1 | . 1 . Scanalyzer . | . . . Garrison Access Hacks . | . . . Unauthorized Hacks 1 | . 1 . Terminals 1 | . 1 . Botnet 1 | . 1 . Fabricators . | . . . Repair Stations . | . . . Recycling Units . | . . . Scanalyzers . | . . . Garrison Access . | . . . Data Cores Recovered . | . . . Used . | . . . Hacking Detections 5 | . 5 . Full Trace Events . | . . . Feedback Events . | . . . Feedback Blocked . | . . . Robot Schematics Acquired . | . . . Robots Built . | . . . Authchips . | . . . Time . | . . . Total Robot Build Rating . | . . . Part Schematics Acquired . | . . . Parts Built . | . . . Authchips . | . . . Time . | . . . Total Part Build Rating . | . . . Part Studies Acquired . | . . . Parts Repaired . | . . . Time . | . . . Parts Recycled . | . . . Recycled Matter . | . . . Retrieved Matter . | . . . Retrieved Components 10 | . 10 . Parts Scanalyzed . | . . . Part Schematics Acquired . | . . . Parts Damaged . | . . . Bothacking | -11 -10 -10 ------------ Run | Yrd Mat Sub Used RIF Installer . | . . . Robots Hacked . | . . . Non-combat . | . . . Combat . | . . . Robot Hacks Applied . | . . . Relay Couplers Released . | . . . Fabnet Peak Effective % . | . . . Robots Rewired . | . . . Allies Hacked . | . . . Hacks Repelled . | . . . Allies | -11 -10 -10 -------- Run | Yrd Mat Sub Total Allies . | . . . Largest Group . | . . . Highest-Rated Group . | . . . Highest-Rated Ally . | . . . Total Orders . | . . . Ally Attacks . | . . . Total Damage . | . . . Kills . | . . . Allies Corrupted . | . . . Allies Melted . | . . . Intel | -11 -10 -10 ------- Run | Yrd Mat Sub Active Infowar (turns) 401 | . 102 299 Optics 102 | . 102 . Seismic 299 | . . 299 Robot Analysis Total 1 | . 1 . Derelict Logs Recovered . | . . . Drone Launches . | . . . Drone Recoveries . | . . . Exploration | -11 -10 -10 ------------- Run | Yrd Mat Sub Turns Passed 1278 | 37 925 316 Spaces Moved 978 | 36 619 323 Core 1 | 1 . . Treads . | . . . Legs . | . . . Wheels 977 | 35 619 323 Hover . | . . . Flight . | . . . Fastest Speed 50 | 50 80 80 Average Speed 81 | 79 81 80 Slowest Speed 95 | 80 95 80 Overloaded Moves . | . . . Propulsion Burnouts . | . . . Robots Hopped . | . . . Potential Cave-ins . | . . . Cave-ins Triggered . | . . . Exploration Rate (%) 30 | 3 66 23 Regions Visited 2 Branch Regions 1 Pre-discovered Areas . | . . . Known Exits Taken . | . . . Unknown Exits Taken 2 | 1 1 . Scrap Searched . | . . . Spaces Dug . | . . . Terrain Destroyed . | . . . Melee . | . . . Projectile . | . . . AOE . | . . . Terrain Rammed . | . . . Walls Destroyed . | . . . Machines Disabled . | . . . Actions | -11 -10 -10 --------- Run | Yrd Mat Sub Total 1330 | 41 912 377 Wait 250 | . 199 51 Move 976 | 35 618 323 Hop . | . . . Pick Up 10 | . 10 . Fast Attach 10 | 6 4 . Attach 4 | . 4 . Detach . | . . . Swap 3 | . 2 1 Drop 6 | . 6 . Fire 71 | . 69 2 Melee . | . . . Ram . | . . . Kick . | . . . Crush . | . . . Escape Stasis . | . . . Rewire . | . . . Trap . | . . . Miscellaneous . | . . . Route ------- -11/Scrapyard -10/Materials (discovered 4 exits: [*Mat x2] / [*Min] / *Sub) -10/Subcaves History --------- Turn | Location | Event 11 | -11/Scrapyard | Discovered new exit (range 16) 38 | -11/Scrapyard | Entered Materials 132 | -10/Materials | Discovered new exit (range 4) 177 | -10/Materials | Discovered new exit (range 11) 324 | -10/Materials | Build established: Mutant 410 | -10/Materials | Discovered new exit (range 15) 566 | -10/Materials | Discovered new exit (range 4) 638 | -10/Materials | Derelicts attacked the area 888 | -10/Materials | Core integrity fell below 50% 963 | -10/Materials | Entered Subcaves 1044 | -10/Subcaves | A swath of the cavern ceiling suddenly collapsed 1181 | -10/Subcaves | Core integrity fell below 20% 1277 | -10/Subcaves | Ambushed by Subdweller buried in earth 1279 | -10/Subcaves | Destroyed by YP-32A(R) with Subdweller Beam Cannon Last Messages --------------- 00938_ Acquired Aluminum Leg. 00940_ Acquired Hacking Suite. 00941_ Acquired 14 matter. 00942_ Extracted 11 matter. 00951_ K-01 Serf collects debris. LOCATION=UNKNOWN AMBIENT_HEAT=-10 GOAL=ESCAPE 01017_ Connecting with UFD SUBCON Station... 01017_ Current location identified: Subcaves >>Open Door Sealed Heavy Doors opened. A swath of the cavern ceiling suddenly collapses. 01274_ 3X-UFB(R): "MADSUB!" 01277_ Wheel destroyed. 01277_ 3X-UFB(R) destroyed. 01277_ Switching to secondary target: YP-32A(R). 01278_ YP-32A(R): "ARGHSUB!" 01279_ Particle Gun destroyed. Map ----- +----------------------------------------------------+ | # ###??#### ??? ???? | | # ##???????# % #??? #??? | | # #????????# % #????? ???? | | #????????# ## % #?????# #????# | | ##????????# ##### ##?? ##????## ##### | | "###?????????####### ##???? ##???### | | #????????????## ##????######## | | ##????????????# #????##% ## | | ??????????????## ##???# % ## | | ???????????????# ### ###?# #? | | ??????????????# ??# #### #? | | ??????????????# ??## ## ## ## | | ??????????????###??# ### # | | ???????????????????# ####" #?# # | | ????????????????#### ## ## #??##" #?# | | ????????????????# ## ## ## #???####?## | | ????????????????# ##### ######?????????##"" | | ???????????????## ##???????????????###" | | ??????????????## ##??????????????????## | | ?????????????## #???????????????????? | | ???????????### ;#####???????????????? | | ???????????# ;## ##??????????????? | | ???????????# #;; ;;# ##?????????????? | | ???????????# # ; ##????????????? | | ???????????##### # R ## #??????? | | ???????????????## ## @ #???????" | | ???????????????## ###; *& ?????? | | ?????????????### ## &%! "????? | | ?????????????# ## ??????? | | ????????????# ;; #? ??????? | | ????????????# ### ####?? ## ??????? | | ????????????# %% #?####??????#?? ???????? | | ????????????# &* #??????????????? ???????? | | ????????????# ""##????????????????????????? | | ???????????# % ####?????????????????????????? | | ???????????## %% #????????????????????????????? | | ????????????# #????????????????????????????? | | ???????????? ######????????????????????????????? | | ??????????? #??????????????????????????????????? | | ?????????? ???????????????????????????????????? | | ??????????? ???????????????????????????????????? | | ?????????????????????????????????????????????????? | | ?????????????????????????????????????????????????? | | ?????????????????????????????????????????????????? | | ?????????????????????????????????????????????????? | | ?????????????????????????????????????????????????? | | ?????????????????????????????????????????????????? | | ?????????????????????????????????????????????????? | | ?????????????????????????????????????????????????? | | ?????????????????????????????????????????????????? | +----------------------------------------------------+ Best States ------------- Heat Dissipation 25 Energy Generation 10 Energy Capacity 250 Matter Stores 300 Matter Capacity 300 Sight Range 18 Terrain Scan Density 10 Propulsion Shielding 33 Evasion (%) 44 Item Schematics ----------------- None Robot Schematics ------------------ None Fabricated ------------ Nothing Repaired ---------- Nothing Studied --------- None Alien Tech Used ----------------- None Achievements -------------- None Challenges ------------ None Game ------ Seed ParticleMomentumHumpback Manual? 0 Play Time 00:11:38 Cumulative 158.7 hours Start 2025.12.06 @ 04:04:47 End 2025.12.06 @ 04:14:38 Sessions 1 Manual Loads 0 Difficulty Rogue Special Mode None Game No. 86 Rogue 86 Adventurer 0 Explorer 0 Win Type - Total 1 Types 1/0/0/0/0/0/0/0/0/0 Lore% 68 Gallery% 62 Achievement% 51 Wizard Run 0 Options --------- Layout 1 ASCII 0 Keyboard 0 Movement Mouse Keybinds 0 Fullscreen 2 Font 32/SmallcapsGlow Map View 50x35 Zoom Use 0% Tactical HUD 1 Map Filters NONE Filters NONE Steam 1 RUN: 98a90658-ddbd-4299-9cf0-7d43df3e1f5b